fUST/lending_fUST_20250805
["ID","MTS","AMOUNT","RATE_DAILY","PERIOD"]
[377306884,1754327777778,5000.0,0.0003,2]
[377306885,1754327793648,5000.0,0.0003,2]
[377306886,1754327808838,5000.0,0.0003,2]
[377306887,1754327825134,5000.0,0.0003,2]
[377306888,1754327840899,5000.0,0.0003,2]
[377306889,1754327857181,5000.0,0.0003,2]
[377306890,1754327870675,181.70272191,0.00027639,15]
[377306891,1754327872014,181.7,0.00027539,15]
[377306892,1754327873108,5000.0,0.0003,2]
[377306893,1754327888321,5000.0,0.0003,2]
[377306894,1754327903501,5000.0,0.0003,2]
[377306895,1754327918876,5000.0,0.0003,2]
[377306896,1754327934748,5000.0,0.0003,2]
[377306897,1754327949937,5000.0,0.0003,2]
[377306898,1754327954575,1728.2811549,0.00029132,2]
[377306899,1754327965846,5000.0,0.0003,2]
[377306900,1754327983563,5000.0,0.0003,2]
[377306901,1754327986532,234.89,0.00029132,30]
[377306902,1754327986929,234.89,0.00029585,30]
[377306903,1754327999361,5000.0,0.0003,2]
[377306904,1754328003106,2861.63716818,0.00023062,2]
[377306905,1754328015388,1742.27005995,0.00028194,2]
[377306906,1754328017147,416.038309,0.00013699,2]
[377306907,1754328017270,5000.0,0.0003,2]
[377306908,1754328017591,416.038309,0.00020187,2]
[377306909,1754328017813,416.038309,0.00026676,2]
[377306911,1754328033372,5000.0,0.0003,2]
[377306912,1754328035857,338.93136216,0.00028539,2]
[377306913,1754328049149,5000.0,0.0003,2]
[377306914,1754328050693,1000.0,0.00029042,30]
[377306915,1754328056396,182.69,0.00028575,30]
[377306916,1754328056777,182.69,0.00029101,30]
[377306917,1754328057699,182.69,0.00029626,30]
[377306918,1754328065090,5000.0,0.0003,2]
[377306919,1754328065791,188.699216,0.00029038,2]
[377306920,1754328070454,154.342014,0.00028597,20]
[377306921,1754328070721,154.342014,0.00028173,20]
[377306922,1754328080289,1353.21843362,0.0003,2]
[377306924,1754328116015,160.0,0.0002,3]
[377306926,1754328134611,5000.0,0.00025803,2]
[377306927,1754328134885,3957.89146604,0.00019303,2]
[377306929,1754328268135,-280.44119232,0.00029643,2]
[377306930,1754328271305,-161.80880768,0.00029643,2]
[377306931,1754328277756,-671.03412257,0.00029643,2]
[377306932,1754328279904,-201.24587743,0.00029643,2]
[377306933,1754328284516,-151.0,0.00029643,2]
[377306934,1754328288607,-186.92016374,0.00029643,2]
[377306935,1754328294037,-226.11795406,0.00029643,2]
[377306936,1754328297661,-174.97466553,0.00029643,2]
[377306937,1754328301689,-168.43393704,0.00028956,2]
[377306938,1754328306719,-299.50309888,0.00028955,2]
[377306939,1754328311097,-0.49690112,0.00028955,2]
[377306940,1754328311128,-290.91827315,0.00028955,2]
[377306941,1754328311154,218.72,0.00029643,30]
[377306944,1754328315231,-9.08172685,0.00028955,2]
[377306945,1754328315257,-387.67451255,0.00028955,2]
[377306946,1754328317452,174.446128,0.00028796,120]
[377306947,1754328317631,-184.38411863,0.00028194,2]
[377306948,1754328321772,-154.94342266,0.00028194,2]
[377306949,1754328325973,-245.05657734,0.00028194,2]
[377306950,1754328329793,-258.49262457,0.00028194,2]
[377306951,1754328332071,-265.74370836,0.00028194,2]
[377306952,1754328334264,-52.89292174,0.00028194,2]
[377306953,1754328334290,-250.60510424,0.00028955,2]
[377306954,1754328338184,-254.19852162,0.00027509,2]
[377306955,1754328338207,-49.17027983,0.00028955,2]
[377306956,1754328341947,-261.74694461,0.00028955,2]
[377306957,1754328344811,-173.27798758,0.00028955,2]
[377306958,1754328346329,-77.52517119,0.00028955,2]
[377306959,1754328346352,-138.92894318,0.00028955,2]
[377306960,1754328350500,-161.07105682,0.00028955,2]
[377306961,1754328350522,-30.57359035,0.00028956,2]
[377306962,1754328352041,-302.73858263,0.00028956,2]
[377306963,1754328358523,-391.04089778,0.00028956,2]
[377306966,1754328365902,-205.72813309,0.00028955,2]
[377306967,1754328369705,-94.27186691,0.00028955,2]
[377306968,1754328369729,-65.42520107,0.00028956,2]
[377306969,1754328373180,-242.71265532,0.00028956,2]
[377306970,1754328375900,-211.04827367,0.00028956,2]
[377306971,1754328381767,-303.9360333,0.00028956,2]
[377306972,1754328383282,-190.76398994,0.00028956,2]
[377306973,1754328384894,194.42,0.00028955,30]
[377306974,1754328385306,194.42,0.00029429,30]
[377306975,1754328385716,194.42,0.00029904,30]
[377306976,1754328385980,-405.1085234,0.00028956,2]
[377306977,1754328390890,-246.64829135,0.00028956,2]
[377306978,1754328393298,-247.53889469,0.00028955,2]
[377306979,1754328396038,-159.684336,0.00028955,2]
[377306980,1754328398590,-267.10638613,0.00028955,2]
[377306981,1754328401104,-210.35256253,0.00028955,2]
[377306982,1754328405584,-56.31782065,0.00028955,2]
[377306983,1754328405613,-156.93130434,0.00028956,2]
[377306984,1754328408938,-264.32842949,0.00028956,2]
[377306985,1754328415107,-201.99381989,0.00028956,2]
[377306986,1754328421349,-281.22107599,0.00028956,2]
[377306987,1754328423557,-246.32849046,0.00028955,2]
[377306988,1754328430217,-53.67150954,0.00028955,2]
[377306989,1754328430238,-166.97115368,0.00028955,2]
[377306990,1754328432022,-133.02884632,0.00028955,2]
[377306991,1754328432045,-295.84062525,0.00028956,2]
[377306992,1754328440411,-173.09147578,0.00027564,15]
[377306993,1754328445702,-48.02852422,0.00027564,15]
[377306994,1754328445724,-126.460291,0.00027564,2]
[377306995,1754328447674,-202.64167504,0.00027564,2]
[377306996,1754328447698,-120.85896121,0.00027664,15]
[377306997,1754328453912,-100.27103879,0.00027664,15]
[377306998,1754328453939,-203.53694951,0.00027822,2]
[377306999,1754328455557,-125.56501652,0.00027822,2]
[377307000,1754328455579,-92.80208862,0.00028081,2]
[377307001,1754328458227,882.10853396,0.00026571,2]
[377307002,1754328458251,4117.89146604,0.00026571,2]
[377307003,1754328461655,-300.0,0.00028043,2]
[377307004,1754328463789,-266.77376164,0.00028043,2]
[377307005,1754328465273,-287.343222,0.00028043,2]
[377307006,1754328468773,250.63370421,0.000209,2]
[377307007,1754328468908,5631.47482975,0.00018,2]
[377307008,1754328468931,10000.0,0.00018,2]
[377307009,1754328468956,10000.0,0.00018,2]
[377307010,1754328468980,10000.0,0.00018,2]
[377307011,1754328469002,10000.0,0.00018,2]
[377307012,1754328469026,10000.0,0.00018,2]
[377307013,1754328469050,10000.0,0.00018,2]
[377307014,1754328469078,10000.0,0.00018,2]
[377307015,1754328469102,7355.98216385,0.00018,2]
[377307016,1754328471593,-34377.90240226,0.00028043,2]
[377307017,1754328471615,-236.29987741,0.00028081,2]
[377307018,1754328471636,-305.79772033,0.00028339,2]
[377307019,1754328472715,-23.3042457,0.00028339,2]
[377307020,1754328472736,-329.10196603,0.00028598,2]
[377307021,1754328472758,-36.38842412,0.00028856,2]
[377307022,1754328472939,2644.01783615,0.00018,2]
[377307023,1754328472960,1025.43709321,0.00018,2]
[377307024,1754328474344,5000.0,0.00026571,2]
[377307025,1754328474831,-292.71354191,0.00028856,2]
[377307026,1754328474854,-10.8504122,0.00028956,2]
[377307030,1754328477980,-195.36767866,0.00028956,2]
[377307031,1754328482434,-257.779812,0.00028956,2]
[377307032,1754328485178,-194.05105617,0.00028956,2]
[377307033,1754328489641,3974.56290679,0.00026571,2]
[377307034,1754328489663,1025.43709321,0.00026571,2]
[377307035,1754328490324,-175.974682,0.00028956,2]
[377307036,1754328492879,-259.47830683,0.00028956,2]
[377307037,1754328495122,-189.93666899,0.00028956,2]
[377307038,1754328496846,-254.43632542,0.00028956,2]
[377307039,1754328500621,270.81646805,0.00021,2]
[377307040,1754328502084,-173.73978902,0.0002822,2]
[377307041,1754328503206,254.64696863,0.000176,2]
[377307042,1754328503620,-321.10974438,0.0002822,2]
[377307043,1754328505002,1123.67213978,0.00024656,2]
[377307044,1754328505367,-238.29172907,0.0002822,2]
[377307045,1754328505962,5000.0,0.00026571,2]
[377307046,1754328510929,-211.18334189,0.0002822,2]
[377307047,1754328513415,960.13952416,0.0002602,2]
[377307048,1754328514562,150.0,0.0002,20]
[377307049,1754328514591,50084.02404288,0.0002,20]
[377307050,1754328514629,1365.28780617,0.0002,2]
[377307051,1754328514652,10000.0,0.0002,2]
[377307052,1754328514673,10000.0,0.0002,2]
[377307053,1754328514696,10000.0,0.0002,2]
[377307054,1754328514717,10000.0,0.0002,2]
[377307055,1754328514739,10000.0,0.0002,2]
[377307056,1754328514760,4624.85083815,0.0002,2]
[377307057,1754328515502,5375.14916185,0.0002,2]
[377307058,1754328515524,7121.50408966,0.0002,2]
[377307059,1754328515796,1278.47704481,0.00018,2]
[377307061,1754328518740,-277.18971478,0.0002822,2]
[377307062,1754328520308,-172.90418563,0.0002822,2]
[377307063,1754328521215,1600.01886553,0.00026571,2]
[377307064,1754328521238,3399.98113447,0.00026571,2]
[377307065,1754328521699,302.55838276,0.00021,2]
[377307066,1754328522260,6297.46048277,0.00019,2]
[377307067,1754328522281,1241.9242645,0.00019,2]
[377307068,1754328523920,8758.0757355,0.0002465,2]
[377307069,1754328523944,10000.0,0.0002465,2]
[377307070,1754328523965,10000.0,0.0002465,2]
[377307071,1754328523989,4274.13065544,0.0002465,2]
[377307072,1754328524553,-165.701387,0.0002822,2]
[377307073,1754328525136,190.98079586,0.0002616,2]
[377307074,1754328526135,-201.01610443,0.0002822,2]
[377307075,1754328529017,-280.33513156,0.0002822,2]
[377307076,1754328536703,5000.0,0.00026571,2]
[377307077,1754328537005,-261.59802483,0.0002822,2]
[377307078,1754328542661,-185.67421876,0.0002822,2]
[377307079,1754328544791,-13.98529963,0.0002822,2]
[377307080,1754328544816,-156.63281297,0.0002822,2]
[377307082,1754328550900,-193.10734889,0.0002822,2]
[377307083,1754328552371,534.8885487,0.00026571,2]
[377307084,1754328552392,4465.1114513,0.00026571,2]
[377307085,1754328553625,-316.41303341,0.0002822,2]
[377307086,1754328567529,-137.09682933,0.0002822,2]
[377307087,1754328567551,-24.7315381,0.00028541,2]
[377307089,1754328569293,5000.0,0.00026571,2]
[377307090,1754328573105,-163.40734134,0.00028541,2]
[377307091,1754328573499,150.0,0.00025381,2]
[377307092,1754328577008,-327.65431307,0.00028541,2]
[377307093,1754328583579,-312.18837019,0.00028541,2]
[377307094,1754328583602,-29.75853369,0.00028541,2]
[377307095,1754328586739,384.8885487,0.00026571,2]
[377307096,1754328586764,4615.1114513,0.00026571,2]
[377307098,1754328592004,-151.70508104,0.00028541,2]
[377307099,1754328593694,-326.01698617,0.00028541,2]
[377307100,1754328593717,-16.66124805,0.00028955,2]
[377307101,1754328596536,-214.02377099,0.00028955,2]
[377307102,1754328599452,-69.31498096,0.00028955,2]
[377307103,1754328599475,-225.01599388,0.00028955,2]
[377307104,1754328602753,-186.14805203,0.00028955,2]
[377307105,1754328604634,5000.0,0.00026571,2]
[377307106,1754328605501,-183.31320801,0.00028955,2]
[377307107,1754328607851,-208.77277068,0.00028955,2]
[377307108,1754328607874,-118.1040617,0.00028955,2]
[377307109,1754328612463,-181.8959383,0.00028955,2]
[377307110,1754328612486,-173.45336021,0.00028955,2]
[377307111,1754328614767,-126.54663979,0.00028955,2]
[377307112,1754328614791,-199.00731069,0.00028955,2]
[377307113,1754328619880,384.8885487,0.00026571,2]
[377307114,1754328619903,4615.1114513,0.00026571,2]
[377307115,1754328622710,-310.03743883,0.000279,2]
[377307116,1754328625309,-551.26811528,0.000279,2]
[377307117,1754328629849,-153.27945065,0.000279,2]
[377307127,1754328633234,-523.09623689,0.000279,2]
[377307129,1754328633245,-43.60376311,0.00028955,2]
[377307136,1754328633327,-57.3889262,0.00028955,2]
[377307137,1754328633336,-956.18890917,0.00028955,2]
[377307143,1754328633398,-243.81109083,0.00028955,2]
[377307145,1754328633408,-5122.32630022,0.00028956,2]
[377307147,1754328633418,-664.19843904,0.00029456,2]
[377307149,1754328633427,-2323.2766985,0.00029889,2]
[377307151,1754328633437,-158.74660787,0.00029899,2]
[377307153,1754328633447,-3407.66932195,0.000299,21]
[377307172,1754328634377,-412.71703786,0.00028956,2]
[377307173,1754328636272,5000.0,0.00026571,2]
[377307186,1754328638236,-1500.91304214,0.000299,21]
[377307187,1754328638246,-500.0,0.00029973,5]
[377307188,1754328638256,-500.0,0.00029973,5]
[377307189,1754328638264,-502.94869412,0.00029973,5]
[377307190,1754328638273,-502.29650842,0.00029973,5]
[377307191,1754328638282,-200.46251314,0.00029973,5]
[377307192,1754328638293,-310.03743883,0.00029988,2]
[377307193,1754328638302,-500.0,0.00029988,2]
[377307194,1754328638311,-500.0,0.00029988,2]
[377307195,1754328638320,-500.0,0.00029988,2]
[377307196,1754328638330,-500.0,0.00029988,2]
[377307197,1754328638340,-522.09888231,0.00029988,2]
[377307198,1754328638350,-230.44722579,0.00029988,2]
[377307199,1754328638359,-500.0,0.00029988,2]
[377307200,1754328638369,-500.0,0.00029988,2]
[377307201,1754328638379,-500.0,0.00029988,2]
[377307202,1754328638388,-500.0,0.00029988,2]
[377307203,1754328638397,-500.0,0.00029988,2]
[377307204,1754328638407,-500.0,0.00029988,2]
[377307205,1754328638417,-500.0,0.00029988,2]
[377307206,1754328638427,-500.0,0.00029988,2]
[377307207,1754328638437,-500.0,0.00029988,2]
[377307208,1754328638447,-500.0,0.00029988,2]
[377307209,1754328638456,-551.26811528,0.00029988,2]
[377307210,1754328638466,-500.0,0.00029988,2]
[377307211,1754328638475,-500.0,0.00029988,2]
[377307213,1754328638485,-500.0,0.00029988,2]
[377307215,1754328638494,-500.0,0.00029988,2]
[377307217,1754328638504,-500.0,0.00029988,2]
[377307219,1754328638513,-372.01910813,0.00029988,2]
[377307221,1754328638523,-500.0,0.00029988,2]
[377307223,1754328638532,-500.0,0.00029988,2]
[377307225,1754328638542,-500.0,0.00029988,2]
[377307227,1754328638551,-500.0,0.00029988,2]
[377307229,1754328638560,-500.0,0.00029988,2]
[377307231,1754328638569,-500.0,0.00029988,2]
[377307233,1754328638579,-500.0,0.00029988,2]
[377307235,1754328638589,-500.0,0.00029988,2]
[377307237,1754328638598,-500.0,0.00029988,2]
[377307239,1754328638607,-500.0,0.00029988,2]
[377307240,1754328638617,-500.0,0.00029988,2]
[377307242,1754328638627,-500.0,0.00029988,2]
[377307244,1754328638637,-500.0,0.00029988,2]
[377307246,1754328638646,-450.0,0.00029988,2]
[377307248,1754328638655,-232.25237105,0.00029988,2]
[377307250,1754328638665,-500.0,0.00029988,2]
[377307252,1754328638674,-500.0,0.00029988,2]
[377307253,1754328638684,-500.0,0.00029988,2]
[377307254,1754328638693,-500.0,0.00029988,2]
[377307255,1754328638702,-500.0,0.00029988,2]
[377307257,1754328638711,-500.0,0.00029988,2]
[377307260,1754328638721,-500.0,0.00029988,2]
[377307262,1754328638730,-500.0,0.00029988,2]
[377307264,1754328638739,-500.0,0.00029988,2]
[377307266,1754328638748,-500.0,0.00029988,2]
[377307267,1754328638758,-500.0,0.00029988,2]
[377307269,1754328638767,-500.0,0.00029988,2]
[377307271,1754328638776,-500.0,0.00029988,2]
[377307273,1754328638786,-500.0,0.00029988,2]
[377307275,1754328638797,-500.0,0.00029988,2]
[377307277,1754328638807,-500.0,0.00029988,2]
[377307279,1754328638816,-500.0,0.00029988,2]
[377307281,1754328638826,-500.0,0.00029988,2]
[377307282,1754328638835,-500.0,0.00029988,2]
[377307283,1754328638845,-500.0,0.00029988,2]
[377307284,1754328638854,-500.0,0.00029988,2]
[377307286,1754328638863,-500.0,0.00029988,2]
[377307288,1754328638873,-500.0,0.00029988,2]
[377307290,1754328638882,-500.0,0.00029988,2]
[377307291,1754328638891,-194.41863213,0.00029988,2]
[377307292,1754328638900,-500.0,0.00029988,2]
[377307293,1754328638909,-591.29026752,0.00029988,2]
[377307294,1754328638918,-500.0,0.00029988,2]
[377307295,1754328638927,-500.0,0.00029988,2]
[377307296,1754328638936,-500.0,0.00029988,2]
[377307297,1754328638951,-500.0,0.00029988,2]
[377307298,1754328638960,-500.0,0.00029988,2]
[377307299,1754328638970,-500.0,0.00029988,2]
[377307300,1754328638979,-500.0,0.00029988,2]
[377307301,1754328638990,-500.0,0.00029988,2]
[377307302,1754328639000,-500.0,0.00029988,2]
[377307303,1754328639010,-500.0,0.00029988,2]
[377307304,1754328639021,-500.0,0.00029988,2]
[377307305,1754328639031,-500.0,0.00029988,2]
[377307306,1754328639043,-500.0,0.00029988,2]
[377307307,1754328639054,-500.0,0.00029988,2]
[377307308,1754328639064,-500.0,0.00029988,2]
[377307309,1754328639075,-500.0,0.00029988,2]
[377307310,1754328639084,-500.0,0.00029988,2]
[377307311,1754328639094,-500.0,0.00029988,2]
[377307312,1754328639103,-500.0,0.00029988,2]
[377307313,1754328639229,-500.0,0.00029988,2]
[377307314,1754328639239,-500.0,0.00029988,2]
[377307315,1754328639249,-500.0,0.00029988,2]
[377307316,1754328639259,-500.0,0.00029988,2]
[377307317,1754328639269,-500.0,0.00029988,2]
[377307318,1754328639279,-500.0,0.00029988,2]
[377307319,1754328639288,-500.0,0.00029988,2]
[377307320,1754328639299,-500.0,0.00029988,2]
[377307321,1754328639309,-500.0,0.00029988,2]
[377307322,1754328639318,-500.0,0.00029988,2]
[377307323,1754328639327,-500.0,0.00029988,2]
[377307324,1754328639337,-500.0,0.00029988,2]
[377307325,1754328639346,-412.99025634,0.00029988,2]
[377307326,1754328639356,-500.0,0.00029988,2]
[377307327,1754328639365,-500.0,0.00029988,2]
[377307328,1754328639375,-50053.87773214,0.00029989,2]
[377307329,1754328639414,-12486.29920026,0.00029989,2]
[377307330,1754328639423,-500.0,0.00029997,2]
[377307331,1754328639433,-311.99123862,0.00029997,2]
[377307332,1754328639442,-500.0,0.00029999,2]
[377307333,1754328639452,-31245.88965617,0.00029999,2]
[377307334,1754328639461,-1000.0,0.0003,2]
[377307335,1754328639471,-1000.0,0.0003,2]
[377307336,1754328639481,-1000.0,0.0003,2]
[377307337,1754328639490,-1000.0,0.0003,2]
[377307338,1754328639499,-302.23872553,0.0003,2]
[377307339,1754328639508,-1006.13,0.0003,2]
[377307340,1754328639517,-676.08,0.00030029,3]
[377307341,1754328639526,-338.04,0.00030029,3]
[377307342,1754328639535,-169.02,0.00030029,3]
[377307343,1754328639546,-507.06,0.00030029,3]
[377307344,1754328639555,-166.682,0.0003003,24]
[377307345,1754328639565,-179.40814277,0.0003003,24]
[377307346,1754328639574,-187620.530797,0.00030043,2]
[377307347,1754328639584,-370000.0,0.00030053,2]
[377307348,1754328639593,-236.46206706,0.00030073,5]
[377307349,1754328639602,-503.37262385,0.00030073,5]
[377307350,1754328639612,-500.0,0.00030073,5]
[377307351,1754328639621,-500.0,0.00030073,5]
[377307352,1754328639630,-37187.35570165,0.00030073,2]
[377307353,1754328639640,-1085.93977996,0.0003013,2]
[377307354,1754328639650,-400.0,0.00030137,120]
[377307355,1754328639660,-494.7,0.00030147,2]
[377307356,1754328639669,-529.82436658,0.00030194,2]
[377307357,1754328639679,-2117.17816886,0.00030194,2]
[377307358,1754328639688,-436.2370914,0.00030194,2]
[377307359,1754328639698,-4908.58236395,0.00030245,22]
[377307360,1754328639707,-1535.83645844,0.00030303,2]
[377307361,1754328639717,-272713.01039026,0.00030304,20]
[377307362,1754328639729,-818.10765238,0.00030304,20]
[377307363,1754328639740,-3712.2,0.00030304,20]
[377307412,1754328640536,-349.8863605,0.00029899,2]
[377307432,1754328641607,-0.018913,0.00029899,2]
[377307433,1754328641727,193.019612,0.00025778,2]
[377307434,1754328642223,191.8689367,0.00026044,2]
[377307435,1754328642252,1.1506753,0.00026044,2]
[377307547,1754328647740,-193.963386,0.00029003,2]
[377307548,1754328647750,-156.46947014,0.00029073,2]
[377307549,1754328647760,-500.0,0.00029988,2]
[377307550,1754328647770,-500.0,0.00029988,2]
[377307551,1754328647779,-207.09,0.00030294,10]
[377307552,1754328647789,-865.37,0.00030294,3]
[377307553,1754328647801,-803.2500246,0.00030303,2]
[377307554,1754328647810,-10339.49123272,0.00030304,20]
[377307555,1754328651874,5000.0,0.00026571,2]
[377307557,1754328659165,-218.12637201,0.00029988,2]
[377307558,1754328680243,899.07010527,0.00025803,2]
[377307559,1754328723148,160.0,0.0002,3]
[377307560,1754328739929,-300.0,0.00029972,2]
[377307561,1754328739950,-500.0,0.00029973,5]
[377307562,1754328739971,-500.0,0.00029973,5]
[377307563,1754328739994,-500.0,0.00029973,5]
[377307564,1754328740014,-299.55837291,0.00029973,5]
[377307565,1754328740035,-501.69518135,0.00029973,5]
[377307566,1754328740055,-504.05081134,0.00029973,5]
[377307567,1754328740077,-500.0,0.00029973,5]
[377307568,1754328740097,-500.0,0.00029973,5]
[377307569,1754328740117,-506.86097359,0.00029973,5]
[377307570,1754328740283,-502.33443714,0.00029973,5]
[377307571,1754328740305,-262.14508383,0.00029973,5]
[377307572,1754328740335,-506.85336871,0.00029973,5]
[377307573,1754328740361,-172.58,0.00029978,10]
[377307574,1754328740384,-50000.0,0.00029978,2]
[377307575,1754328740406,-155.0,0.00029987,2]
[377307576,1754328740427,-281.87362799,0.00029988,2]
[377307577,1754328740448,-604.20911482,0.00029988,2]
[377307578,1754328740469,-500.0,0.00029988,2]
[377307579,1754328740491,-500.0,0.00029988,2]
[377307580,1754328740512,-500.0,0.00029988,2]
[377307581,1754328740533,-500.0,0.00029988,2]
[377307582,1754328740553,-554.64136848,0.00029988,2]
[377307583,1754328740575,-551.26811528,0.00029988,2]
[377307584,1754328740595,-500.0,0.00029988,2]
[377307585,1754328740617,-500.0,0.00029988,2]
[377307586,1754328740639,-500.0,0.00029988,2]
[377307587,1754328740660,-563.0614186,0.00029988,2]
[377307588,1754328740681,-547.61522042,0.00029988,2]
[377307589,1754328740703,-500.0,0.00029988,2]
[377307590,1754328740726,-500.0,0.00029988,2]
[377307591,1754328740749,-500.0,0.00029988,2]
[377307592,1754328740771,-500.0,0.00029988,2]
[377307593,1754328740793,-500.0,0.00029988,2]
[377307594,1754328740815,-500.0,0.00029988,2]
[377307595,1754328740838,-500.0,0.00029988,2]
[377307596,1754328740860,-500.0,0.00029988,2]
[377307597,1754328740883,-500.0,0.00029988,2]
[377307598,1754328740905,-500.0,0.00029988,2]
[377307599,1754328740927,-500.0,0.00029988,2]
[377307600,1754328740950,-500.0,0.00029988,2]
[377307601,1754328740973,-500.0,0.00029988,2]
[377307602,1754328740997,-500.0,0.00029988,2]
[377307603,1754328741020,-500.0,0.00029988,2]
[377307604,1754328741042,-500.0,0.00029988,2]
[377307605,1754328741066,-500.0,0.00029988,2]
[377307606,1754328741088,-500.0,0.00029988,2]
[377307607,1754328741109,-500.0,0.00029988,2]
[377307608,1754328741131,-500.0,0.00029988,2]
[377307609,1754328741154,-500.0,0.00029988,2]
[377307610,1754328741176,-500.0,0.00029988,2]
[377307611,1754328741198,-500.0,0.00029988,2]
[377307612,1754328741220,-500.0,0.00029988,2]
[377307613,1754328741241,-500.0,0.00029988,2]
[377307614,1754328741263,-500.0,0.00029988,2]
[377307615,1754328741286,-500.0,0.00029988,2]
[377307616,1754328741308,-500.0,0.00029988,2]
[377307617,1754328741330,-500.0,0.00029988,2]
[377307618,1754328741351,-500.0,0.00029988,2]
[377307619,1754328741373,-500.0,0.00029988,2]
[377307620,1754328741395,-500.0,0.00029988,2]
[377307621,1754328741418,-500.0,0.00029988,2]
[377307622,1754328741440,-500.0,0.00029988,2]
[377307623,1754328741462,-500.0,0.00029988,2]
[377307624,1754328741485,-500.0,0.00029988,2]
[377307625,1754328741507,-500.0,0.00029988,2]
[377307626,1754328741529,-351.17138806,0.00029988,2]
[377307627,1754328741554,-500.0,0.00029988,2]
[377307628,1754328741577,-500.0,0.00029988,2]
[377307629,1754328741599,-500.0,0.00029988,2]
[377307630,1754328741620,-500.0,0.00029988,2]
[377307631,1754328741645,-500.0,0.00029988,2]
[377307632,1754328741670,-500.0,0.00029988,2]
[377307633,1754328741690,-500.0,0.00029988,2]
[377307634,1754328741711,-500.0,0.00029988,2]
[377307635,1754328741735,-500.0,0.00029988,2]
[377307636,1754328741756,-500.0,0.00029988,2]
[377307637,1754328741777,-500.0,0.00029988,2]
[377307638,1754328741797,-500.0,0.00029988,2]
[377307639,1754328741818,-500.0,0.00029988,2]
[377307640,1754328741837,-500.0,0.00029988,2]
[377307641,1754328741857,-500.0,0.00029988,2]
[377307642,1754328741879,-500.0,0.00029988,2]
[377307643,1754328741899,-500.0,0.00029988,2]
[377307644,1754328741920,-500.0,0.00029988,2]
[377307645,1754328741942,-500.0,0.00029988,2]
[377307646,1754328741962,-500.0,0.00029988,2]
[377307647,1754328741988,-500.0,0.00029988,2]
[377307648,1754328742009,-500.0,0.00029988,2]
[377307649,1754328742030,-500.0,0.00029988,2]
[377307650,1754328742051,-500.0,0.00029988,2]
[377307651,1754328742073,-500.0,0.00029988,2]
[377307652,1754328742093,-500.0,0.00029988,2]
[377307653,1754328742114,-500.0,0.00029988,2]
[377307654,1754328742134,-500.0,0.00029988,2]
[377307655,1754328742155,-533.28121008,0.00029988,2]
[377307656,1754328742176,-500.0,0.00029988,2]
[377307657,1754328742197,-500.0,0.00029988,2]
[377307658,1754328742219,-500.0,0.00029988,2]
[377307659,1754328742239,-500.0,0.00029988,2]
[377307660,1754328742260,-500.0,0.00029988,2]
[377307661,1754328742281,-500.0,0.00029988,2]
[377307662,1754328742302,-199.3499585,0.00029988,2]
[377307663,1754328742323,-500.0,0.00029988,2]
[377307664,1754328742346,-726.56869266,0.00029988,2]
[377307665,1754328742368,-500.0,0.00029988,2]
[377307666,1754328742396,-726.56869266,0.00029988,2]
[377307667,1754328742419,-500.0,0.00029988,2]
[377307668,1754328742444,-726.56869266,0.00029988,2]
[377307669,1754328742467,-347.21759182,0.00029988,2]